fUST/lending_fUST_20240209
["ID","MTS","AMOUNT","RATE_DAILY","PERIOD"]
[313596473,1707439832294,-151.0,0.00021891,2]
[313596475,1707439832304,-151.0,0.00021891,2]
[313596477,1707439832313,-151.0,0.00021891,2]
[313596479,1707439832323,-151.0,0.00021891,2]
[313596481,1707439832333,-151.0,0.00021891,2]
[313596483,1707439832342,-15819.2124216,0.00021892,2]
[313596588,1707439838211,-3273.91327912,0.00021892,2]
[313596591,1707439838267,-7080.0230457,0.00021892,2]
[313596595,1707439841345,-8570.19233485,0.00021892,2]
[313596596,1707439841355,-151.0,0.00021892,2]
[313596597,1707439841364,-151.0,0.00021892,2]
[313596598,1707439841374,-151.0,0.00021892,2]
[313596599,1707439841383,-151.0,0.00021892,2]
[313596600,1707439841392,-2012.04997593,0.00021893,2]
[313596601,1707439841403,-3171.72312632,0.00021893,2]
[313596602,1707439841414,-13036.22535313,0.00021893,2]
[313596617,1707439843166,-2070.0,0.00021893,2]
[313596705,1707440571998,1968.05,0.0003,120]
[313596777,1707441032289,-527.74115772,0.00019748,3]
[313596834,1707441038340,-896.44002472,0.00019748,3]
[313596836,1707441038395,-333.81123382,0.00019748,3]
[313596838,1707441038405,-295.79717631,0.00019748,2]
[313596839,1707441038414,-155.0480649,0.00019748,2]
[313596840,1707441038423,-294.57728151,0.00019748,2]
[313596841,1707441038432,-155.0480649,0.00019748,2]
[313596842,1707441038441,-500.0,0.00019748,2]
[313596843,1707441038451,-261.88794378,0.00019748,2]
[313596844,1707441038460,-155.0480649,0.00019748,2]
[313596845,1707441038469,-181.54986875,0.00019749,2]
[313596846,1707441038479,-161.52708074,0.00019749,2]
[313596847,1707441038488,-7983.26892551,0.00019749,2]
[313596848,1707441038498,-167.19218389,0.0001975,2]
[313596849,1707441038507,-155.0480649,0.0001975,2]
[313596850,1707441038516,-4495.75258545,0.0001975,2]
[313596851,1707441038525,-358.12933795,0.00019793,2]
[313596852,1707441038535,-155.0480649,0.0002,2]
[313596853,1707441038544,-1290.85969613,0.00021733,2]
[313596854,1707441038553,-200.0,0.00021734,7]
[313596855,1707441038562,-233.5413,0.00021784,2]
[313596856,1707441038572,-540.11697096,0.00021867,2]
[313596857,1707441038582,-155.0480649,0.00021868,4]
[313596858,1707441038591,-7621.25358491,0.00021893,2]
[313596859,1707441038600,-2090.25573355,0.00021893,2]
[313596860,1707441038609,-1650.19411677,0.00021893,2]
[313596861,1707441038618,-156.51799454,0.00021893,2]
[313596862,1707441038627,-622.36860432,0.00021893,2]
[313596863,1707441038636,-166.666666,0.00021918,2]
[313596864,1707441038645,-621.10947475,0.00021944,2]
[313596865,1707441038654,-295.78108884,0.00022,4]
[313596866,1707441038664,-11864.01750238,0.00022,2]
[313596867,1707441038673,-151.0,0.00022,2]
[313596868,1707441038682,-502.496368,0.00022,2]
[313596869,1707441038692,-502.496368,0.00022,2]
[313596870,1707441038702,-151.0,0.00022,2]
[313596871,1707441038711,-155.0480649,0.00022,2]
[313596872,1707441038720,-326.48350937,0.00022,2]
[313596873,1707441038729,-427.31508471,0.00022,2]
[313596874,1707441038738,-154.4659569,0.00022041,2]
[313596875,1707441038747,-153.0,0.00022041,2]
[313596876,1707441038756,-153.0,0.00022041,2]
[313596877,1707441038765,-153.0,0.00022041,2]
[313596878,1707441038774,-9969.58754808,0.00023,2]
[313596879,1707441038783,-313.80517935,0.00023,6]
[313596880,1707441038792,-151.0,0.00023,2]
[313596881,1707441038801,-151.0,0.00023,2]
[313596882,1707441038811,-212.12,0.00023,2]
[313596883,1707441038820,-502.496368,0.00023,2]
[313596884,1707441038829,-502.496368,0.00023,2]
[313596885,1707441038838,-151.0,0.00023,2]
[313596886,1707441038847,-245.235841,0.00023,2]
[313596887,1707441038857,-245.235841,0.00023,2]
[313596888,1707441038868,-151.0,0.00023,2]
[313596889,1707441038877,-1263.33437611,0.0002304,2]
[313596890,1707441038887,-620.05547374,0.00023041,2]
[313596891,1707441038896,-693.392747,0.0002379,2]
[313596892,1707441038905,-693.392747,0.0002379,2]
[313596893,1707441038914,-264.4506316,0.0002379,2]
[313596894,1707441038923,-502.496368,0.00023888,2]
[313596895,1707441038932,-502.496368,0.00023888,2]
[313596896,1707441038941,-151.0,0.00023888,2]
[313596897,1707441038951,-245.235841,0.00023888,2]
[313596898,1707441038960,-245.235841,0.00023888,2]
[313596899,1707441038969,-151.0,0.00023888,2]
[313596900,1707441038978,-151.0,0.0002389,2]
[313596901,1707441038987,-151.0,0.0002389,2]
[313596902,1707441038996,-693.392747,0.0002389,2]
[313596903,1707441039005,-693.392747,0.0002389,2]
[313596904,1707441039013,-27736.93352593,0.00023897,2]
[313596905,1707441039023,-155.06047358,0.00023898,2]
[313596906,1707441039032,-175.72920133,0.00023898,2]
[313596907,1707441039041,-155.05892239,0.00023899,2]
[313596908,1707441039053,-2606.4717958,0.00023899,2]
[313596909,1707441039063,-245.235841,0.00023899,2]
[313596910,1707441039071,-245.235841,0.00023899,2]
[313596911,1707441039080,-151.0,0.00023899,2]
[313596912,1707441039090,-14671.20692655,0.000239,2]
[313596913,1707441039099,-151.0,0.000239,2]
[313596914,1707441039108,-151.0,0.000239,2]
[313596915,1707441039117,-502.496368,0.000239,2]
[313596916,1707441039128,-502.496368,0.000239,2]
[313596917,1707441039136,-151.0,0.000239,2]
[313596918,1707441039145,-693.392747,0.000239,2]
[313596919,1707441039155,-693.392747,0.000239,2]
[313596920,1707441039164,-245.235841,0.000239,2]
[313596921,1707441039173,-245.235841,0.000239,2]
[313596922,1707441039181,-283.142045,0.000239,2]
[313596923,1707441039190,-280.0,0.00023907,7]
[313596924,1707441039199,-1195.29551701,0.00024,2]
[313596925,1707441039209,-592.84209843,0.00024,2]
[313596926,1707441039218,-264.4506316,0.00024016,2]
[313596927,1707441039226,-264.4506316,0.00024242,2]
[313596928,1707441039235,-151.0,0.000243,2]
[313596929,1707441039244,-151.0,0.000243,2]
[313596930,1707441039253,-500.0,0.000243,2]
[313596931,1707441039263,-3500.0,0.000243,2]
[313596932,1707441039272,-502.496368,0.000243,2]
[313596933,1707441039281,-502.496368,0.000243,2]
[313596934,1707441039290,-502.496368,0.000243,2]
[313596935,1707441039300,-502.496368,0.000243,2]
[313596936,1707441039309,-151.0,0.000243,2]
[313596937,1707441039318,-151.0,0.000243,2]
[313596938,1707441039327,-693.392747,0.000243,2]
[313596939,1707441039336,-693.392747,0.000243,2]
[313596940,1707441039345,-693.392747,0.000243,2]
[313596941,1707441039354,-693.392747,0.000243,2]
[313596942,1707441039364,-165.054232,0.000243,2]
[313596943,1707441039373,-245.235841,0.000243,2]
[313596944,1707441039382,-245.235841,0.000243,2]
[313596945,1707441039392,-245.235841,0.000243,2]
[313596946,1707441039400,-245.235841,0.000243,2]
[313596947,1707441039410,-216.46452068,0.00024304,2]
[313596948,1707441039419,-272.83807142,0.00024304,2]
[313596949,1707441039428,-158.926865,0.00024304,2]
[313596950,1707441039437,-364.5569269,0.00024384,2]
[313596951,1707441039446,-264.4506316,0.00024467,2]
[313596952,1707441039456,-166.666666,0.00024482,2]
[313596953,1707441039466,-1868.50136376,0.00024491,2]
[313596954,1707441039475,-502.496368,0.00024491,2]
[313596955,1707441039484,-502.496368,0.00024491,2]
[313596956,1707441039493,-693.392747,0.00024491,2]
[313596957,1707441039502,-693.392747,0.00024491,2]
[313596958,1707441039511,-245.235841,0.00024491,2]
[313596959,1707441039521,-245.235841,0.00024491,2]
[313596960,1707441039530,-151.0,0.00024508,2]
[313596961,1707441039539,-264.4506316,0.00024693,2]
[313596962,1707441039548,-1297.11370687,0.00024693,2]
[313596963,1707441039558,-346.27817447,0.00024726,2]
[313596964,1707441039567,-620.23996484,0.00024736,2]
[313596965,1707441039576,-1138.92299914,0.00024737,2]
[313596966,1707441039586,-1996.50298693,0.00024737,2]
[313596967,1707441039595,-155.05116273,0.00024737,2]
[313596968,1707441039605,-502.496368,0.00024737,2]
[313596969,1707441039614,-502.496368,0.00024737,2]
[313596970,1707441039624,-693.392747,0.00024737,2]
[313596971,1707441039633,-693.392747,0.00024737,2]
[313596972,1707441039642,-245.235841,0.00024737,2]
[313596973,1707441039651,-245.235841,0.00024737,2]
[313596974,1707441039660,-164.49311095,0.00024738,2]
[313596975,1707441039669,-19906.99800967,0.00024738,2]
[313596976,1707441039679,-213.6847704,0.00024738,2]
[313596977,1707441039688,-200.0,0.00024738,2]
[313596978,1707441039697,-309.9395475,0.00024738,2]
[313596979,1707441039707,-170.2444162,0.00024738,2]
[313596980,1707441039716,-214.62601308,0.00024738,2]
[313596981,1707441039725,-157.23235059,0.00024738,2]
[313596982,1707441039736,-329.93073591,0.00024738,2]
[313596983,1707441039746,-554.94823898,0.00024738,2]
[313596984,1707441039756,-323.57048434,0.00024738,2]
[313596985,1707441039766,-2107.6155977,0.00024738,2]
[313596986,1707441039775,-270.84453947,0.00024738,2]
[313596987,1707441039784,-155.35988771,0.00024738,2]
[313596988,1707441039794,-905.63862374,0.00024738,2]
[313596989,1707441039803,-680.3937856,0.00024738,2]
[313596990,1707441039812,-167.27020705,0.00024738,2]
[313596991,1707441039821,-502.496368,0.00024738,2]
[313596992,1707441039831,-502.496368,0.00024738,2]
[313596993,1707441039840,-502.496368,0.00024738,2]
[313596994,1707441039849,-502.496365,0.00024738,2]
[313596995,1707441039858,-693.392747,0.00024738,2]
[313596996,1707441039869,-693.392747,0.00024738,2]
[313596997,1707441039878,-693.392747,0.00024738,2]
[313596998,1707441039887,-693.392747,0.00024738,2]
[313596999,1707441039897,-245.235841,0.00024738,2]
[313597000,1707441039905,-245.235841,0.00024738,2]
[313597001,1707441039915,-245.235841,0.00024738,2]
[313597002,1707441039924,-245.235833,0.00024738,2]
[313597003,1707441039933,-523.68160801,0.00024739,2]
[313597004,1707441039942,-8236.64055242,0.00024739,2]
[313597005,1707441039951,-500.0,0.00024739,2]
[313597006,1707441039960,-500.0,0.00024739,2]
[313597007,1707441039970,-500.0,0.00024739,2]
[313597008,1707441039979,-500.0,0.00024739,2]
[313597009,1707441039988,-200.59221235,0.00024739,2]
[313597010,1707441039997,-500.0,0.00024739,2]
[313597011,1707441040007,-500.0,0.00024739,2]
[313597012,1707441040015,-500.0,0.00024739,2]
[313597013,1707441040024,-500.0,0.00024739,2]
[313597014,1707441040034,-500.0,0.00024739,2]
[313597015,1707441040043,-500.0,0.00024739,2]
[313597016,1707441040056,-500.0,0.00024739,2]
[313597017,1707441040065,-266.43731207,0.00024739,2]
[313597018,1707441040074,-500.0,0.00024739,2]
[313597019,1707441040083,-300.0,0.00024739,2]
[313597020,1707441040092,-500.0,0.00024739,2]
[313597021,1707441040102,-500.0,0.00024739,2]
[313597022,1707441040111,-500.0,0.00024739,2]
[313597023,1707441040121,-500.0,0.00024739,2]
[313597024,1707441040130,-500.0,0.00024739,2]
[313597025,1707441040139,-500.0,0.00024739,2]
[313597026,1707441040148,-500.0,0.00024739,2]
[313597027,1707441040157,-500.0,0.00024739,2]
[313597028,1707441040166,-500.0,0.00024739,2]
[313597029,1707441040175,-500.0,0.00024739,2]
[313597030,1707441040184,-239.60768122,0.00024739,2]
[313597031,1707441040193,-500.0,0.00024739,2]
[313597032,1707441040202,-500.0,0.00024739,2]
[313597033,1707441040211,-213.64796811,0.00024739,2]
[313597034,1707441040219,-500.0,0.00024739,2]
[313597035,1707441040228,-500.0,0.00024739,2]
[313597036,1707441040237,-340.04048337,0.00024739,2]
[313597037,1707441040247,-500.0,0.00024739,2]
[313597038,1707441040256,-500.0,0.00024739,2]
[313597039,1707441040265,-415.1367604,0.00024739,2]
[313597040,1707441040274,-500.0,0.00024739,2]
[313597041,1707441040283,-500.0,0.00024739,2]
[313597042,1707441040292,-500.0,0.00024739,2]
[313597043,1707441040301,-500.0,0.00024739,2]
[313597046,1707441040387,-500.0,0.00024739,2]
[313597047,1707441040396,-212.84182254,0.00024739,2]
[313597048,1707441040404,-500.0,0.00024739,2]
[313597049,1707441040414,-500.0,0.00024739,2]
[313597050,1707441040423,-500.0,0.00024739,2]
[313597051,1707441040432,-500.0,0.00024739,2]
[313597052,1707441040441,-500.0,0.00024739,2]
[313597053,1707441040451,-500.0,0.00024739,2]
[313597054,1707441040459,-500.0,0.00024739,2]
[313597055,1707441040468,-693.392747,0.00024739,2]
[313597056,1707441040478,-693.392741,0.00024739,2]
[313597057,1707441040487,-276000.0,0.0002474,2]
[313597059,1707441040496,-358.12933795,0.00024793,2]
[313597060,1707441040505,-247.28871209,0.00024838,2]
[313597061,1707441040514,-50000.0,0.00024847,2]
[313597062,1707441040523,-609.29127611,0.00024943,2]
[313597063,1707441040532,-155.23060247,0.00024943,2]
[313597065,1707441040541,-499.59176388,0.0002496,5]
[313597066,1707441040551,-159.31275782,0.00024997,2]
[313597067,1707441040560,-1018.41805308,0.00024997,2]
[313597068,1707441040569,-261.08056277,0.00024998,2]
[313597069,1707441040578,-7407.43141525,0.00025,2]
[313597070,1707441040588,-10921.7,0.00025,2]
[313597071,1707441040597,-4739.06901527,0.00025,2]
[313597072,1707441040607,-2000.0,0.00025,2]
[313597073,1707441040617,-2000.0,0.0002501,2]
[313597074,1707441040626,-2000.0,0.0002502,2]
[313597075,1707441040635,-2000.0,0.0002503,2]
[313597076,1707441040645,-2000.0,0.0002504,2]
[313597077,1707441040654,-2000.0,0.0002505,2]
[313597078,1707441040663,-2000.0,0.0002506,2]
[313597079,1707441040673,-2000.0,0.0002507,2]
[313597080,1707441040682,-2000.0,0.0002508,2]
[313597081,1707441040691,-2000.0,0.0002509,2]
[313597082,1707441040700,-2000.0,0.000251,2]
[313597083,1707441040709,-2000.0,0.0002511,2]
[313597084,1707441040719,-2000.0,0.0002512,2]
[313597085,1707441040728,-151.0,0.00025128,2]
[313597086,1707441040737,-2000.0,0.0002513,2]
[313597087,1707441040746,-2000.0,0.0002514,2]
[313597088,1707441040755,-2000.0,0.0002515,2]
[313597089,1707441040764,-2000.0,0.0002516,2]
[313597090,1707441040773,-2000.0,0.0002517,2]
[313597091,1707441040782,-2655.285294,0.0002518,2]
[313597092,1707441040791,-307.3855345,0.00025205,2]
[313597093,1707441040800,-153.4634771,0.00025205,2]
[313597094,1707441040809,-223.5144734,0.00025205,2]
[313597095,1707441040818,-199.9537868,0.00025205,2]
[313597096,1707441040827,-306.0,0.00025205,2]
[313597097,1707441040836,-45042.45146491,0.00025207,2]
[313597098,1707441040845,-831.667,0.000253,2]
[313597099,1707441040854,-200.0,0.000253,4]
[313597100,1707441040864,-200.0,0.00025479,2]
[313597101,1707441040873,-151.0,0.00025747,2]
[313597102,1707441040882,-280.5209617,0.00026,2]
[313597103,1707441040890,-207.7973928,0.00026027,2]
[313597104,1707441040900,-199.9537868,0.00026027,2]
[313597105,1707441040909,-153.0,0.00026027,2]
[313597106,1707441040918,-153.0,0.00026027,2]
[313597107,1707441040926,-153.0,0.00026027,2]
[313597108,1707441040935,-5000.0,0.00026154,2]
[313597109,1707441040944,-500.0,0.00026162,2]
[313597110,1707441040953,-198.0198743,0.00026162,2]
[313597111,1707441040962,-534.50757566,0.00026162,2]
[313597112,1707441040971,-500.0,0.00026162,2]
[313597113,1707441040980,-500.0,0.00026162,2]
[313597114,1707441040989,-500.0,0.00026162,2]
[313597115,1707441040998,-487.50454306,0.00026162,2]
[313597116,1707441041007,-434.75633078,0.00026162,2]
[313597117,1707441041016,-500.0,0.00026162,2]
[313597118,1707441041025,-500.0,0.00026162,2]
[313597119,1707441041034,-500.0,0.00026162,2]
[313597120,1707441041043,-500.0,0.00026162,2]
[313597121,1707441041055,-500.0,0.00026162,2]
[313597122,1707441041064,-500.0,0.00026162,2]
[313597123,1707441041073,-500.0,0.00026162,2]
[313597124,1707441041082,-500.0,0.00026162,2]
[313597125,1707441041091,-500.0,0.00026162,2]
[313597126,1707441041100,-500.0,0.00026162,2]
[313597127,1707441041109,-352.34306415,0.00026162,2]
[313597128,1707441041118,-500.0,0.00026162,2]
[313597129,1707441041128,-500.0,0.00026162,2]
[313597130,1707441041137,-500.0,0.00026162,2]
[313597131,1707441041146,-161.01247025,0.00026162,2]
[313597132,1707441041155,-500.0,0.00026162,2]
[313597133,1707441041165,-500.0,0.00026162,2]
[313597134,1707441041174,-500.0,0.00026162,2]
[313597135,1707441041183,-188.72347117,0.00026162,2]
[313597136,1707441041193,-500.0,0.00026162,2]
[313597137,1707441041202,-500.0,0.00026162,2]
[313597138,1707441041211,-5000.0,0.00026163,2]
[313597139,1707441041221,-12495.84191547,0.00026163,2]
[313597140,1707441041230,-5000.0,0.00026163,2]
[313597141,1707441041239,-5000.0,0.00026163,2]
[313597142,1707441041248,-5000.0,0.00026163,2]
[313597143,1707441041258,-5000.0,0.00026163,2]
[313597144,1707441041267,-5000.0,0.00026163,2]
[313597145,1707441041276,-5000.0,0.00026163,2]
[313597146,1707441041285,-5000.0,0.00026163,2]
[313597147,1707441041294,-5000.0,0.00026163,2]
[313597148,1707441041303,-5550.8203043,0.00026163,2]
[313597149,1707441041312,-5000.0,0.00026163,2]
[313597150,1707441041322,-5000.0,0.00026163,2]
[313597151,1707441041331,-5000.0,0.00026163,2]
[313597152,1707441041340,-5000.0,0.00026163,2]
[313597153,1707441041350,-5000.0,0.00026163,2]
[313597154,1707441041359,-5000.0,0.00026163,2]
[313597155,1707441041369,-5000.0,0.00026163,2]
[313597156,1707441041388,-23910.18113156,0.00026163,2]
[313597157,1707441041399,-5000.0,0.00026163,2]
[313597158,1707441041409,-5000.0,0.00026163,2]
[313597159,1707441041419,-2252.74540392,0.00026171,2]
[313597160,1707441041429,-173.25707385,0.00026172,2]
[313597161,1707441041438,-177.60998358,0.00026173,2]
[313597162,1707441041448,-1686.38354817,0.00026173,2]
[313597164,1707441041457,-5000.0,0.00026178,2]
[313597165,1707441041467,-5000.0,0.00026178,2]
[313597166,1707441041477,-5000.0,0.00026182,2]
[313597168,1707441041487,-11324.41703606,0.00026188,2]
[313597203,1707441091203,50000.0,0.00029,30]
[313597218,1707441285743,42797.0,0.0003,120]
[313597332,1707442245291,-155.0480649,0.00019983,2]
[313597333,1707442245302,-155.0480649,0.00019983,2]
[313597334,1707442245312,-4496.73960399,0.00019984,2]
[313597335,1707442245321,-155.0480649,0.00019984,2]
[313597336,1707442245331,-3566.71711024,0.00019985,3]
[313597337,1707442245341,-155.0480649,0.0002,2]
[313597338,1707442245351,-427.41735822,0.00022,2]
[313597339,1707442245361,-326.56038554,0.00022,2]
[313597340,1707442245370,-248.6993812,0.00022872,2]
[313597341,1707442245379,-633.62755722,0.00023796,2]
[313597342,1707442245389,-500.0,0.00023896,3]
[313597343,1707442245607,-161.28090304,0.00023896,2]
[313597344,1707442245618,-181.0514795,0.00023896,2]
[313597345,1707442245629,-157.89127347,0.00023896,2]
[313597346,1707442245639,-260.68664381,0.00023896,2]
[313597347,1707442245649,-167.29894405,0.00023896,2]
[313597348,1707442245660,-236.24925679,0.00023896,2]
[313597349,1707442245670,-500.0,0.00023896,2]
[313597350,1707442245681,-297.51969499,0.00023896,2]
[313597351,1707442245690,-225.73443868,0.00023896,2]
[313597352,1707442245701,-262.76233732,0.00023896,2]
[313597353,1707442245711,-7965.86996348,0.00023896,2]
[313597354,1707442245723,-260.51954637,0.00023896,2]
[313597355,1707442245732,-592.9693191,0.00024198,2]
[313597356,1707442245743,-200.0,0.00024199,7]
[313597357,1707442245754,-743.74,0.00024629,3]
[313597358,1707442245763,-1154.6,0.00024629,3]
[313597359,1707442245773,-155.58133301,0.00024637,2]
[313597360,1707442245783,-155.40765533,0.00024638,2]
[313597361,1707442245792,-29786.60827128,0.00024639,2]
[313597428,1707443435032,-4496.73960399,0.00021949,2]
[313597429,1707443435042,-2348.25264562,0.0002195,3]
[313597456,1707443440046,-29.5587612,0.0002195,3]
[313597458,1707443440057,-155.0480649,0.0002195,2]
[313597460,1707443440067,-1291.18671477,0.00021951,2]
[313597462,1707443440076,-427.41735822,0.00022,2]
[313597464,1707443440085,-155.0480649,0.0002214,2]
[313597465,1707443440094,-170.069446,0.00022144,2]
[313597466,1707443440103,-464.35022416,0.00022539,2]
[313597467,1707443440113,-592.9693191,0.00024536,2]
[313597468,1707443440123,-676.09608715,0.00024537,2]
[313597469,1707443440132,-207.73644389,0.00024537,2]
[313597470,1707443440142,-1001.37827674,0.00024538,2]
[313597471,1707443440151,-2329.14123897,0.00024538,5]
[313597472,1707443440163,-393.7943233,0.00024538,5]
[313597473,1707443440173,-536.80669388,0.00024539,2]
[313597474,1707443440185,-3858.30770334,0.00024539,2]
[313597475,1707443440197,-359.64905985,0.00024539,2]
[313597477,1707443440209,-29934.02623783,0.00024539,2]
[313597479,1707443440218,-153.4875482,0.000246,2]
[313597481,1707443440227,-156.412552,0.000246,2]
[313597483,1707443440236,-154.596951,0.000246,2]
[313597485,1707443440245,-230.08412537,0.00024637,2]
[313597486,1707443440254,-156.1101278,0.00024637,2]
[313597487,1707443440263,-247.68596341,0.00024637,2]
[313597488,1707443440272,-441.44293564,0.00024637,2]
[313597489,1707443440281,-296.6484649,0.00024637,2]
[313597490,1707443440290,-6211.03914839,0.00024637,2]
[313597491,1707443440299,-269.91645871,0.00024637,2]
[313597492,1707443440308,-2733.60402565,0.00024639,2]
[313597493,1707443440318,-1832.17488523,0.00024639,2]
[313597494,1707443440327,-155.0480649,0.00024639,2]
[313597495,1707443440336,-300.0,0.00024639,2]
[313597496,1707443440346,-2098.60081966,0.00024639,2]
[313597497,1707443440355,-199.9537868,0.000247,2]
[313597498,1707443440462,-2326.64142853,0.00025,2]
[313597499,1707443440472,-4695.30394613,0.00025,2]
[313597500,1707443440481,-155.18944575,0.00025,2]
[313597501,1707443440490,-155.0480649,0.00025,2]
[313597502,1707443440499,-204.3106515,0.00025178,2]
[313597503,1707443440509,-201.41,0.000252,4]
[313597504,1707443440518,-199.9537868,0.00025205,2]
[313597505,1707443440527,-151.0,0.00025638,2]
[313597506,1707443440536,-962.17,0.00025986,3]
[313597507,1707443440546,-5000.0,0.00025996,2]
[313597508,1707443440555,-2655.09253832,0.00025996,2]
[313597509,1707443440564,-26628.37146522,0.00025996,2]
[313597510,1707443440573,-2427.60284612,0.00025996,2]
[313597511,1707443440583,-5000.0,0.00025996,2]
[313597512,1707443440593,-5000.0,0.00025996,2]
[313597513,1707443440602,-5000.0,0.00025996,2]
[313597514,1707443440611,-5000.0,0.00025996,2]
[313597515,1707443440620,-5000.0,0.00025996,2]
[313597516,1707443440629,-5000.0,0.00025996,2]
[313597517,1707443440638,-5000.0,0.00025996,2]
[313597518,1707443440647,-5000.0,0.00025996,2]
[313597519,1707443440656,-5000.0,0.00025996,2]
[313597520,1707443440665,-5000.0,0.00025996,2]
[313597521,1707443440676,-2801.1164872,0.00025996,2]
[313597664,1707444631819,-547.53425189,0.00021002,2]
[313597666,1707444631831,-3949.2053521,0.00021002,2]
[313597668,1707444631841,-1981.50950569,0.00021003,3]
[313597670,1707444631850,-1291.18671477,0.00021004,2]
[313597671,1707444631859,-262.2403515,0.00021005,2]
[313597672,1707444631868,-5855.36083987,0.00021026,2]
[313597673,1707444631877,-250.0,0.00021033,2]
[313597674,1707444631886,-294.40214372,0.00022,4]
[313597675,1707444631895,-155.04961588,0.00022,2]
[313597676,1707444631904,-427.41735822,0.0002252,2]
[313597677,1707444631912,-676.01530063,0.00022521,2]
[313597678,1707444631921,-649.24704123,0.00022619,2]
[313597679,1707444631930,-6322.58381113,0.0002262,2]
[313597680,1707444631939,-32878.47074521,0.00022621,2]
[313597694,1707444638003,-12883.095106,0.00022621,2]
[313597704,1707444641168,-295.92309297,0.00022621,2]
[313597719,1707444642890,-559.22801751,0.00022621,2]
[313597728,1707444645968,-3383.28303831,0.00022621,2]
[313597729,1707444645977,-200.0,0.00023132,7]
[313597730,1707444645987,-166.666666,0.00023836,2]
[313597731,1707444645996,-309.56681611,0.00023896,2]
[313597732,1707444646006,-592.9693191,0.00024,2]
[313597733,1707444646015,-636.04785476,0.00024638,2]
[313597734,1707444646028,-364.25223527,0.00024638,2]
[313597735,1707444646038,-156.33576031,0.00024639,2]
[313597736,1707444646047,-166.666666,0.0002492,2]
[313597737,1707444646056,-676.01530059,0.00025362,2]
[313597738,1707444646066,-280.0,0.00025445,7]
[313597739,1707444646075,-5000.0,0.0002595,2]
[313597740,1707444646085,-5893.94811004,0.00025958,2]
[313597741,1707444646094,-155.25773747,0.00025958,2]
[313597742,1707444646105,-9839.68619474,0.00025959,2]
[313597762,1707445054592,7251.0,0.00029,30]
[313597769,1707445310301,5000.0,0.00029,30]
[313597891,1707445838186,-265.56998192,0.00022781,2]
[313597892,1707445838197,-4496.73960399,0.00022781,2]
[313597893,1707445838209,-1746.18903205,0.00022782,2]
[313597894,1707445838221,-1032.36645246,0.00022783,3]
[313597895,1707445838233,-1291.18671477,0.00022783,2]
[313597896,1707445838244,-2719.07889388,0.00022784,5]
[313597897,1707445838256,-163.53842509,0.00022788,2]
[313597898,1707445838272,-3.12824091,0.00022788,2]
[313597899,1707445838284,-156.00156511,0.00023437,2]
[313597900,1707445838295,-663.81573962,0.00023859,2]
[313597901,1707445838304,-592.9693191,0.00024656,2]
[313597902,1707445838315,-499.00743818,0.00024657,2]
[313597903,1707445838324,-527.94350552,0.00024899,2]
[313597904,1707445838333,-1801.86,0.0002499,3]
[313597905,1707445838343,-217.5651034,0.00024998,2]
[313597906,1707445838352,-508.78192889,0.00024998,2]
[313597907,1707445838491,-500.0,0.00024998,2]
[313597908,1707445838503,-521.35614295,0.00024998,2]
[313597909,1707445838513,-474.55420342,0.00024998,2]
[313597910,1707445838522,-1086.87093748,0.00024999,2]
[313597911,1707445838531,-653.54472574,0.00024999,2]
[313597912,1707445838542,-325.14926692,0.00024999,2]
[313597913,1707445838551,-500.0,0.00024999,2]
[313597914,1707445838560,-7110.48689911,0.00024999,2]
[313597915,1707445838573,-2806.88310089,0.00024999,2]
[313597916,1707445838582,-15836.06,0.00024999,2]
[313597917,1707445838592,-7946.37,0.00024999,2]
[313597918,1707445838601,-500.0,0.00024999,2]
[313597919,1707445838611,-500.0,0.00024999,2]